[Event "Titled Tuesday Blitz May 16 Early 2023"]
[White "Rangel, Daniel"]
[Black "Odegov, Artem"]
[WhiteFideId "2124475"]
[BlackFideId "34183644"]
[WhiteElo "2256"]
[BlackElo "2300"]
[Result "0-1"]
[Round "05"]
[TimeControl "180+2"]
[Date "2023.05.16"]
[WhiteClock "0:00:00"]
[BlackClock "0:01:01"]

1. c4 {[%clk 0:02:42]}  e6 {[%clk 0:02:58]} 2. g3 {[%clk 0:02:38]}  d5 {[%clk 0:02:57]} 3. Bg2 {[%clk 0:02:35]}  Nf6 {[%clk 0:02:56]} 4. Nf3 {[%clk 0:02:33]}  c5 {[%clk 0:02:56]} 5. O-O {[%clk 0:02:34]}  Nc6 {[%clk 0:02:56]} 6. cxd5 {[%clk 0:02:34]}  exd5 {[%clk 0:02:57]} 7. d4 {[%clk 0:02:35]}  Be7 {[%clk 0:02:57]} 8. Nc3 {[%clk 0:02:35]}  O-O {[%clk 0:02:56]} 9. dxc5 {[%clk 0:02:34]}  Bxc5 {[%clk 0:02:57]} 10. b3 {[%clk 0:02:32]}  Be6 {[%clk 0:02:48]} 11. Bb2 {[%clk 0:02:27]}  a6 {[%clk 0:02:48]} 12. Na4 {[%clk 0:02:26]}  Ba7 {[%clk 0:02:48]} 13. Rc1 {[%clk 0:02:26]}  Rc8 {[%clk 0:02:48]} 14. Ne5 {[%clk 0:02:14]}  Nxe5 {[%clk 0:02:41]} 15. Bxe5 {[%clk 0:02:15]}  Ne4 {[%clk 0:02:41]} 16. Rxc8 {[%clk 0:02:03]}  Qxc8 {[%clk 0:02:42]} 17. Qa1 {[%clk 0:02:04]}  f6 {[%clk 0:02:39]} 18. Bd4 {[%clk 0:02:00]}  Bxd4 {[%clk 0:02:17]} 19. Qxd4 {[%clk 0:02:01]}  b5 {[%clk 0:02:16]} 20. Nb6 {[%clk 0:01:50]}  Qc3 {[%clk 0:02:07]} 21. Qxc3 {[%clk 0:01:12]}  Nxc3 {[%clk 0:02:08]} 22. a4 {[%clk 0:01:01]}  Nxe2+ {[%clk 0:01:07]} 23. Kh1 {[%clk 0:00:59]}  Rd8 {[%clk 0:01:06]} 24. Re1 {[%clk 0:00:53]}  Nd4 {[%clk 0:01:05]} 25. a5 {[%clk 0:00:38]}  Kf7 {[%clk 0:01:05]} 26. b4 {[%clk 0:00:36]}  Nc2 {[%clk 0:01:05]} 27. Rc1 {[%clk 0:00:35]}  Nxb4 {[%clk 0:01:04]} 28. Rc7+ {[%clk 0:00:34]}  Kg6 {[%clk 0:01:04]} 29. h4 {[%clk 0:00:28]}  d4 {[%clk 0:01:03]} 30. Be4+ {[%clk 0:00:13]}  Kh6 {[%clk 0:01:03]} 31. Bf3 {[%clk 0:00:08]}  d3 {[%clk 0:01:03]} 32. Bd1 {[%clk 0:00:08]}  d2 {[%clk 0:01:03]} 33. f4 {[%clk 0:00:04]}  Nd3 {[%clk 0:01:01]} 34. Kg2 {[%clk 0:00:00]}  Nb2 {[%clk 0:01:01]} 0-1


[Site "https://www.chess.com"]

[Event "Titled Tuesday Blitz May 16 Early 2023"]
[White "Tomiello, Mateus Costamilan"]
[Black "Nastase, Robert-Paul"]
[WhiteFideId "22701958"]
[BlackFideId "1221175"]
[WhiteElo "1990"]
[BlackElo "2175"]
[Result "1/2-1/2"]
[Round "05"]
[TimeControl "180+2"]
[Date "2023.05.16"]
[WhiteClock "0:00:27"]
[BlackClock "0:00:08"]

1. e4 {[%clk 0:02:59]}  c5 {[%clk 0:02:57]} 2. Nf3 {[%clk 0:02:59]}  d6 {[%clk 0:02:57]} 3. d4 {[%clk 0:02:57]}  cxd4 {[%clk 0:02:58]} 4. Nxd4 {[%clk 0:02:58]}  Nf6 {[%clk 0:02:59]} 5. Nc3 {[%clk 0:02:59]}  a6 {[%clk 0:02:59]} 6. Be2 {[%clk 0:02:59]}  e6 {[%clk 0:03:00]} 7. O-O {[%clk 0:02:59]}  Be7 {[%clk 0:02:57]} 8. a4 {[%clk 0:02:59]}  O-O {[%clk 0:02:57]} 9. Be3 {[%clk 0:02:51]}  Bd7 {[%clk 0:02:51]} 10. a5 {[%clk 0:02:49]}  Nc6 {[%clk 0:02:51]} 11. Nxc6 {[%clk 0:02:46]}  Bxc6 {[%clk 0:02:52]} 12. f3 {[%clk 0:02:47]}  Qc7 {[%clk 0:02:28]} 13. Bb6 {[%clk 0:02:46]}  Qb8 {[%clk 0:02:22]} 14. Qd2 {[%clk 0:02:36]}  d5 {[%clk 0:02:19]} 15. exd5 {[%clk 0:02:28]}  Nxd5 {[%clk 0:02:20]} 16. Nxd5 {[%clk 0:02:28]}  Bxd5 {[%clk 0:02:21]} 17. c4 {[%clk 0:02:26]}  Bc6 {[%clk 0:02:21]} 18. Rfd1 {[%clk 0:02:24]}  Qe5 {[%clk 0:02:04]} 19. Qd4 {[%clk 0:02:23]}  Qxd4+ {[%clk 0:01:37]} 20. Rxd4 {[%clk 0:02:23]}  Bf6 {[%clk 0:01:37]} 21. Rd2 {[%clk 0:02:23]}  e5 {[%clk 0:01:30]} 22. Bd3 {[%clk 0:02:12]}  Rfe8 {[%clk 0:01:16]} 23. Be4 {[%clk 0:02:09]}  Rac8 {[%clk 0:01:01]} 24. c5 {[%clk 0:01:53]}  Bg5 {[%clk 0:00:47]} 25. Rd6 {[%clk 0:01:38]}  Be3+ {[%clk 0:00:47]} 26. Kf1 {[%clk 0:01:25]}  Bxe4 {[%clk 0:00:48]} 27. fxe4 {[%clk 0:01:25]}  Bxc5 {[%clk 0:00:49]} 28. Bxc5 {[%clk 0:01:26]}  Rxc5 {[%clk 0:00:50]} 29. Rb6 {[%clk 0:01:26]}  Re7 {[%clk 0:00:46]} 30. Rd1 {[%clk 0:01:23]}  g6 {[%clk 0:00:41]} 31. Rd8+ {[%clk 0:01:20]}  Kg7 {[%clk 0:00:42]} 32. b4 {[%clk 0:01:21]}  Rc4 {[%clk 0:00:42]} 33. Rb8 {[%clk 0:01:21]}  Rxe4 {[%clk 0:00:40]} 34. R8xb7 {[%clk 0:01:22]}  Rxb7 {[%clk 0:00:40]} 35. Rxb7 {[%clk 0:01:23]}  Rc4 {[%clk 0:00:37]} 36. Ke2 {[%clk 0:01:22]}  e4 {[%clk 0:00:37]} 37. Rb6 {[%clk 0:01:20]}  f5 {[%clk 0:00:36]} 38. Ke3 {[%clk 0:01:20]}  Kh6 {[%clk 0:00:31]} 39. g3 {[%clk 0:01:18]}  Kg5 {[%clk 0:00:30]} 40. Rxa6 {[%clk 0:01:11]}  Rxb4 {[%clk 0:00:29]} 41. Ra7 {[%clk 0:01:12]}  Rb3+ {[%clk 0:00:28]} 42. Kd4 {[%clk 0:01:11]}  Rd3+ {[%clk 0:00:29]} 43. Kc4 {[%clk 0:01:08]}  f4 {[%clk 0:00:29]} 44. gxf4+ {[%clk 0:01:05]}  Kxf4 {[%clk 0:00:29]} 45. Rxh7 {[%clk 0:01:05]}  Ra3 {[%clk 0:00:25]} 46. Rf7+ {[%clk 0:00:54]}  Ke3 {[%clk 0:00:21]} 47. Kb4 {[%clk 0:00:53]}  Ra2 {[%clk 0:00:19]} 48. Rf6 {[%clk 0:00:53]}  g5 {[%clk 0:00:09]} 49. Rg6 {[%clk 0:00:49]}  Kf4 {[%clk 0:00:09]} 50. Rf6+ {[%clk 0:00:43]}  Ke5 {[%clk 0:00:09]} 51. Rh6 {[%clk 0:00:42]}  e3 {[%clk 0:00:09]} 52. Rh8 {[%clk 0:00:42]}  e2 {[%clk 0:00:08]} 53. Re8+ {[%clk 0:00:42]}  Kf4 {[%clk 0:00:08]} 54. Kb3 {[%clk 0:00:42]}  Rd2 {[%clk 0:00:07]} 55. a6 {[%clk 0:00:39]}  Rd6 {[%clk 0:00:02]} 56. a7 {[%clk 0:00:35]}  Ra6 {[%clk 0:00:02]} 57. Rxe2 {[%clk 0:00:33]}  Rxa7 {[%clk 0:00:02]} 58. Kc4 {[%clk 0:00:33]}  Rd7 {[%clk 0:00:02]} 59. Rg2 {[%clk 0:00:33]}  g4 {[%clk 0:00:02]} 60. Kc3 {[%clk 0:00:33]}  Kf3 {[%clk 0:00:02]} 61. Rg3+ {[%clk 0:00:33]}  Kf4 {[%clk 0:00:03]} 62. Kc4 {[%clk 0:00:33]}  Rd1 {[%clk 0:00:03]} 63. Rg2 {[%clk 0:00:33]}  Kf3 {[%clk 0:00:02]} 64. Rg3+ {[%clk 0:00:33]}  Kf4 {[%clk 0:00:03]} 65. Rg2 {[%clk 0:00:32]}  Rh1 {[%clk 0:00:04]} 66. Kc3 {[%clk 0:00:32]}  Kf3 {[%clk 0:00:04]} 67. Rg3+ {[%clk 0:00:32]}  Kf4 {[%clk 0:00:05]} 68. Rg2 {[%clk 0:00:33]}  Rf1 {[%clk 0:00:05]} 69. Kd2 {[%clk 0:00:33]}  Kf3 {[%clk 0:00:05]} 70. Rg3+ {[%clk 0:00:33]}  Kf4 {[%clk 0:00:06]} 71. Ke2 {[%clk 0:00:31]}  Rh1 {[%clk 0:00:06]} 72. Rg2 {[%clk 0:00:31]}  Ra1 {[%clk 0:00:07]} 73. Rf2+ {[%clk 0:00:31]}  Kg5 {[%clk 0:00:06]} 74. Ke3 {[%clk 0:00:29]}  Ra3+ {[%clk 0:00:06]} 75. Ke4 {[%clk 0:00:30]}  Kh4 {[%clk 0:00:05]} 76. Rf8 {[%clk 0:00:26]}  Ra4+ {[%clk 0:00:05]} 77. Ke3 {[%clk 0:00:26]}  Ra3+ {[%clk 0:00:05]} 78. Kf2 {[%clk 0:00:26]}  Ra2+ {[%clk 0:00:06]} 79. Kg1 {[%clk 0:00:25]}  Ra1+ {[%clk 0:00:06]} 80. Kg2 {[%clk 0:00:26]}  Ra2+ {[%clk 0:00:06]} 81. Rf2 {[%clk 0:00:26]}  Rxf2+ {[%clk 0:00:06]} 82. Kxf2 {[%clk 0:00:26]}  Kh3 {[%clk 0:00:07]} 83. Kg1 {[%clk 0:00:27]}  g3 {[%clk 0:00:07]} 84. hxg3 {[%clk 0:00:27]}  Kxg3 {[%clk 0:00:08]} 1/2-1/2


[Site "https://www.chess.com"]

[Event "Titled Tuesday Blitz May 16 Early 2023"]
[White "Prieto Aranguren, Alain"]
[Black "Kubicka, Anna"]
[WhiteFideId "2268906"]
[BlackFideId "1152254"]
[WhiteElo "2209"]
[BlackElo "2144"]
[Result "0-1"]
[Round "05"]
[TimeControl "180+2"]
[Date "2023.05.16"]
[WhiteClock "0:00:25"]
[BlackClock "0:01:04"]

1. e4 {[%clk 0:02:56]}  c5 {[%clk 0:02:59]} 2. a3 {[%clk 0:02:54]}  g6 {[%clk 0:02:57]} 3. h4 {[%clk 0:02:53]}  h5 {[%clk 0:02:56]} 4. Nh3 {[%clk 0:02:52]}  Bg7 {[%clk 0:02:57]} 5. Ng5 {[%clk 0:02:52]}  Nc6 {[%clk 0:02:51]} 6. Bc4 {[%clk 0:02:43]}  e6 {[%clk 0:02:51]} 7. O-O {[%clk 0:02:42]}  Nge7 {[%clk 0:02:50]} 8. Nc3 {[%clk 0:02:41]}  d5 {[%clk 0:02:49]} 9. exd5 {[%clk 0:02:39]}  exd5 {[%clk 0:02:50]} 10. Ba2 {[%clk 0:02:39]}  O-O {[%clk 0:02:48]} 11. d3 {[%clk 0:02:36]}  Bg4 {[%clk 0:02:44]} 12. Qd2 {[%clk 0:02:27]}  Qd7 {[%clk 0:02:18]} 13. Re1 {[%clk 0:02:25]}  Rae8 {[%clk 0:02:14]} 14. Qf4 {[%clk 0:01:59]}  Nf5 {[%clk 0:02:03]} 15. Rxe8 {[%clk 0:01:55]}  Rxe8 {[%clk 0:02:04]} 16. Nf3 {[%clk 0:01:24]}  Ne5 {[%clk 0:01:45]} 17. Nxd5 {[%clk 0:01:11]}  Nxf3+ {[%clk 0:01:39]} 18. gxf3 {[%clk 0:01:10]}  Re1+ {[%clk 0:01:34]} 19. Kg2 {[%clk 0:01:09]}  Bh3+ {[%clk 0:01:22]} 20. Kxh3 {[%clk 0:00:54]}  Ne3+ {[%clk 0:01:22]} 21. Kh2 {[%clk 0:00:45]}  Rh1+ {[%clk 0:01:18]} 22. Kxh1 {[%clk 0:00:36]}  Qh3+ {[%clk 0:01:18]} 23. Qh2 {[%clk 0:00:33]}  Qxf3+ {[%clk 0:01:04]} 24. Kg1 {[%clk 0:00:25]}  Qd1# {[%clk 0:01:04]} 0-1


[Site "https://www.chess.com"]

[Event "Titled Tuesday Blitz May 16 Early 2023"]
[White "Sharapov, Evgeny"]
[Black "Omariev, Maksim"]
[WhiteFideId "14103133"]
[BlackFideId "4193423"]
[WhiteElo "2367"]
[BlackElo "2412"]
[Result "0-1"]
[Round "05"]
[TimeControl "180+2"]
[Date "2023.05.16"]
[WhiteClock "0:00:09"]
[BlackClock "0:00:04"]

1. e4 {[%clk 0:02:59]}  c5 {[%clk 0:03:00]} 2. Nf3 {[%clk 0:02:59]}  d6 {[%clk 0:03:00]} 3. d4 {[%clk 0:02:59]}  cxd4 {[%clk 0:03:01]} 4. Nxd4 {[%clk 0:02:59]}  Nf6 {[%clk 0:03:02]} 5. Nc3 {[%clk 0:02:59]}  a6 {[%clk 0:03:02]} 6. g3 {[%clk 0:02:59]}  e6 {[%clk 0:03:03]} 7. Bg2 {[%clk 0:02:58]}  Be7 {[%clk 0:03:03]} 8. O-O {[%clk 0:02:58]}  O-O {[%clk 0:03:04]} 9. a4 {[%clk 0:02:58]}  Qc7 {[%clk 0:03:04]} 10. a5 {[%clk 0:02:57]}  Nc6 {[%clk 0:03:02]} 11. Nb3 {[%clk 0:02:57]}  Nd7 {[%clk 0:03:02]} 12. f4 {[%clk 0:02:56]}  Nc5 {[%clk 0:03:02]} 13. Nxc5 {[%clk 0:02:55]}  dxc5 {[%clk 0:03:03]} 14. Bd2 {[%clk 0:02:51]}  Nxa5 {[%clk 0:03:00]} 15. Nd5 {[%clk 0:02:41]}  exd5 {[%clk 0:02:55]} 16. Bxa5 {[%clk 0:02:40]}  b6 {[%clk 0:02:55]} 17. exd5 {[%clk 0:02:40]}  Rd8 {[%clk 0:01:45]} 18. Bc3 {[%clk 0:02:34]}  c4 {[%clk 0:01:34]} 19. Kh1 {[%clk 0:02:31]}  Bb7 {[%clk 0:01:11]} 20. Qg4 {[%clk 0:02:30]}  Bf8 {[%clk 0:01:12]} 21. Rad1 {[%clk 0:02:29]}  b5 {[%clk 0:01:12]} 22. Be5 {[%clk 0:02:15]}  Qc5 {[%clk 0:01:04]} 23. Bf6 {[%clk 0:01:54]}  Rxd5 {[%clk 0:00:45]} 24. Bc3 {[%clk 0:01:28]}  Rad8 {[%clk 0:00:35]} 25. Rxd5 {[%clk 0:01:25]}  Bxd5 {[%clk 0:00:33]} 26. Qe2 {[%clk 0:01:24]}  b4 {[%clk 0:00:30]} 27. Be1 {[%clk 0:01:17]}  a5 {[%clk 0:00:27]} 28. f5 {[%clk 0:01:17]}  Qc6 {[%clk 0:00:20]} 29. f6 {[%clk 0:01:13]}  gxf6 {[%clk 0:00:16]} 30. Bxd5 {[%clk 0:00:52]}  Qxd5+ {[%clk 0:00:13]} 31. Qg2 {[%clk 0:00:52]}  Qxg2+ {[%clk 0:00:13]} 32. Kxg2 {[%clk 0:00:52]}  Kg7 {[%clk 0:00:13]} 33. Rf4 {[%clk 0:00:44]}  Rd1 {[%clk 0:00:09]} 34. Bf2 {[%clk 0:00:37]}  Rb1 {[%clk 0:00:09]} 35. Rxc4 {[%clk 0:00:35]}  Rxb2 {[%clk 0:00:09]} 36. Bd4 {[%clk 0:00:35]}  Ra2 {[%clk 0:00:08]} 37. Kf3 {[%clk 0:00:34]}  Kg6 {[%clk 0:00:05]} 38. Rc6 {[%clk 0:00:33]}  Bg7 {[%clk 0:00:05]} 39. g4 {[%clk 0:00:30]}  h6 {[%clk 0:00:03]} 40. h4 {[%clk 0:00:30]}  Ra3+ {[%clk 0:00:03]} 41. Kf4 {[%clk 0:00:26]}  h5 {[%clk 0:00:02]} 42. g5 {[%clk 0:00:24]}  Rh3 {[%clk 0:00:01]} 43. Bxf6 {[%clk 0:00:20]}  Rxh4+ {[%clk 0:00:02]} 44. Kg3 {[%clk 0:00:20]}  Rg4+ {[%clk 0:00:02]} 45. Kf3 {[%clk 0:00:20]}  Bxf6 {[%clk 0:00:03]} 46. Rxf6+ {[%clk 0:00:19]}  Kg7 {[%clk 0:00:04]} 47. Rf5 {[%clk 0:00:18]}  a4 {[%clk 0:00:04]} 48. Ra5 {[%clk 0:00:18]}  a3 {[%clk 0:00:04]} 49. Kf2 {[%clk 0:00:16]}  Kg6 {[%clk 0:00:04]} 50. Kf3 {[%clk 0:00:15]}  Kg7 {[%clk 0:00:03]} 51. Kf2 {[%clk 0:00:15]}  Kg6 {[%clk 0:00:04]} 52. Kf3 {[%clk 0:00:15]}  Rc4 {[%clk 0:00:05]} 53. Ra4 {[%clk 0:00:13]}  Kxg5 {[%clk 0:00:04]} 54. Kg3 {[%clk 0:00:09]}  f5 {[%clk 0:00:04]} 0-1


[Site "https://www.chess.com"]

[Event "Titled Tuesday Blitz May 16 Early 2023"]
[White "Lehtosaari, Mauri"]
[Black "Smith, Shreyas"]
[WhiteFideId "501999"]
[BlackFideId "7400713"]
[WhiteElo "2503"]
[BlackElo "2151"]
[Result "1-0"]
[Round "05"]
[TimeControl "180+2"]
[Date "2023.05.16"]
[WhiteClock "0:00:43"]
[BlackClock "0:00:00"]

1. d4 {[%clk 0:03:00]}  d5 {[%clk 0:02:59]} 2. c4 {[%clk 0:02:59]}  e6 {[%clk 0:02:59]} 3. Nc3 {[%clk 0:02:59]}  a6 {[%clk 0:02:55]} 4. cxd5 {[%clk 0:02:57]}  exd5 {[%clk 0:02:55]} 5. Nf3 {[%clk 0:02:47]}  c6 {[%clk 0:02:55]} 6. Bg5 {[%clk 0:02:47]}  Be7 {[%clk 0:02:53]} 7. Bxe7 {[%clk 0:02:46]}  Nxe7 {[%clk 0:02:54]} 8. e3 {[%clk 0:02:46]}  O-O {[%clk 0:02:52]} 9. Bd3 {[%clk 0:02:41]}  Bf5 {[%clk 0:02:52]} 10. Qc2 {[%clk 0:02:41]}  Bxd3 {[%clk 0:02:47]} 11. Qxd3 {[%clk 0:02:42]}  Nc8 {[%clk 0:02:46]} 12. h4 {[%clk 0:02:41]}  Nd6 {[%clk 0:02:35]} 13. Ng5 {[%clk 0:02:39]}  g6 {[%clk 0:02:34]} 14. O-O-O {[%clk 0:02:36]}  Qf6 {[%clk 0:02:28]} 15. f4 {[%clk 0:02:33]}  Qf5 {[%clk 0:02:27]} 16. Qe2 {[%clk 0:02:20]}  h6 {[%clk 0:02:10]} 17. g4 {[%clk 0:02:12]}  Qf6 {[%clk 0:02:00]} 18. Nf3 {[%clk 0:02:08]}  Nd7 {[%clk 0:01:55]} 19. Ne5 {[%clk 0:02:07]}  Qe7 {[%clk 0:01:50]} 20. h5 {[%clk 0:02:02]}  g5 {[%clk 0:01:39]} 21. fxg5 {[%clk 0:01:58]}  Nxe5 {[%clk 0:01:35]} 22. dxe5 {[%clk 0:01:58]}  Qxe5 {[%clk 0:01:30]} 23. gxh6 {[%clk 0:01:56]}  Nc4 {[%clk 0:01:28]} 24. e4 {[%clk 0:01:54]}  Rae8 {[%clk 0:01:10]} 25. Rdg1 {[%clk 0:01:46]}  Qf4+ {[%clk 0:00:58]} 26. Kb1 {[%clk 0:01:43]}  Nd2+ {[%clk 0:00:53]} 27. Ka1 {[%clk 0:01:40]}  Nxe4 {[%clk 0:00:54]} 28. Nxe4 {[%clk 0:01:17]}  Rxe4 {[%clk 0:00:55]} 29. Qc2 {[%clk 0:01:13]}  Qe5 {[%clk 0:00:43]} 30. g5 {[%clk 0:01:07]}  Re8 {[%clk 0:00:30]} 31. a3 {[%clk 0:01:01]}  Re2 {[%clk 0:00:17]} 32. Qb3 {[%clk 0:00:58]}  Re3 {[%clk 0:00:10]} 33. Qb4 {[%clk 0:00:58]}  Re4 {[%clk 0:00:09]} 34. Qb6 {[%clk 0:00:56]}  Qd4 {[%clk 0:00:07]} 35. Qxb7 {[%clk 0:00:49]}  R4e7 {[%clk 0:00:03]} 36. Qb3 {[%clk 0:00:44]}  c5 {[%clk 0:00:00]} 37. g6 {[%clk 0:00:43]} 1-0


[Site "https://www.chess.com"]

[Event "Titled Tuesday Blitz May 16 Early 2023"]
[White "Veiga, Jose Francisco R P Neves"]
[Black "Goswami, Vedant"]
[WhiteFideId "1930087"]
[BlackFideId "5003725"]
[WhiteElo "2320"]
[BlackElo "2011"]
[Result "1-0"]
[Round "05"]
[TimeControl "180+2"]
[Date "2023.05.16"]
[WhiteClock "0:00:36"]
[BlackClock "0:00:00"]

1. d4 {[%clk 0:02:53]}  g6 {[%clk 0:02:59]} 2. Nf3 {[%clk 0:02:54]}  d6 {[%clk 0:02:59]} 3. e4 {[%clk 0:02:53]}  Bg7 {[%clk 0:02:59]} 4. Nc3 {[%clk 0:02:53]}  Bg4 {[%clk 0:02:57]} 5. Be3 {[%clk 0:02:52]}  Nc6 {[%clk 0:02:56]} 6. Be2 {[%clk 0:02:50]}  Bxf3 {[%clk 0:02:53]} 7. Bxf3 {[%clk 0:02:49]}  e5 {[%clk 0:02:53]} 8. Ne2 {[%clk 0:02:46]}  Nf6 {[%clk 0:02:33]} 9. O-O {[%clk 0:02:39]}  O-O {[%clk 0:02:31]} 10. Re1 {[%clk 0:02:34]}  Re8 {[%clk 0:02:20]} 11. d5 {[%clk 0:02:33]}  Nb8 {[%clk 0:01:48]} 12. c4 {[%clk 0:02:32]}  Nbd7 {[%clk 0:01:47]} 13. b4 {[%clk 0:02:31]}  h5 {[%clk 0:01:38]} 14. Bg5 {[%clk 0:02:27]}  Qc8 {[%clk 0:01:25]} 15. h4 {[%clk 0:02:25]}  Nh7 {[%clk 0:01:24]} 16. Be3 {[%clk 0:02:24]}  Qd8 {[%clk 0:01:23]} 17. g3 {[%clk 0:02:24]}  f5 {[%clk 0:01:06]} 18. exf5 {[%clk 0:02:23]}  e4 {[%clk 0:01:06]} 19. Bg2 {[%clk 0:02:21]}  Bxa1 {[%clk 0:00:55]} 20. fxg6 {[%clk 0:02:21]}  Nhf6 {[%clk 0:00:47]} 21. Qxa1 {[%clk 0:02:19]}  Ne5 {[%clk 0:00:46]} 22. Bd4 {[%clk 0:02:04]}  Qd7 {[%clk 0:00:31]} 23. Nf4 {[%clk 0:02:03]}  Qf5 {[%clk 0:00:25]} 24. Qb1 {[%clk 0:01:45]}  Nd3 {[%clk 0:00:13]} 25. Bxe4 {[%clk 0:01:00]}  Rxe4 {[%clk 0:00:09]} 26. Rxe4 {[%clk 0:00:56]}  Qxe4 {[%clk 0:00:05]} 27. Bxf6 {[%clk 0:00:54]}  Qe1+ {[%clk 0:00:04]} 28. Qxe1 {[%clk 0:00:54]}  Nxe1 {[%clk 0:00:05]} 29. Kf1 {[%clk 0:00:50]}  Nf3 {[%clk 0:00:04]} 30. Ke2 {[%clk 0:00:43]}  Nh2 {[%clk 0:00:03]} 31. f3 {[%clk 0:00:36]}  Re8+ {[%clk 0:00:00]} 32. Kf2 {[%clk 0:00:36]} 1-0


[Site "https://www.chess.com"]

[Event "Titled Tuesday Blitz May 16 Early 2023"]
[White "Berezin, Viktor"]
[Black "Yanayt, Eugene"]
[WhiteFideId "14107872"]
[BlackFideId "2020165"]
[WhiteElo "2310"]
[BlackElo "2083"]
[Result "1-0"]
[Round "05"]
[TimeControl "180+2"]
[Date "2023.05.16"]
[WhiteClock "0:01:03"]
[BlackClock "0:00:17"]

1. d4 {[%clk 0:03:00]}  Nf6 {[%clk 0:02:58]} 2. Nf3 {[%clk 0:03:00]}  g6 {[%clk 0:02:58]} 3. g3 {[%clk 0:02:58]}  Bg7 {[%clk 0:02:58]} 4. Bg2 {[%clk 0:02:59]}  O-O {[%clk 0:02:58]} 5. O-O {[%clk 0:03:00]}  d6 {[%clk 0:02:58]} 6. a4 {[%clk 0:03:01]}  Nc6 {[%clk 0:02:57]} 7. a5 {[%clk 0:03:00]}  e5 {[%clk 0:02:57]} 8. a6 {[%clk 0:02:56]}  e4 {[%clk 0:02:54]} 9. Ng5 {[%clk 0:02:55]}  d5 {[%clk 0:02:53]} 10. axb7 {[%clk 0:02:53]}  Bxb7 {[%clk 0:02:53]} 11. c4 {[%clk 0:02:53]}  Ne7 {[%clk 0:02:52]} 12. cxd5 {[%clk 0:02:52]}  Bxd5 {[%clk 0:02:52]} 13. Nc3 {[%clk 0:02:51]}  e3 {[%clk 0:02:35]} 14. Bxe3 {[%clk 0:02:47]}  Bxg2 {[%clk 0:02:32]} 15. Kxg2 {[%clk 0:02:48]}  Nfd5 {[%clk 0:02:30]} 16. Nxd5 {[%clk 0:02:45]}  Qxd5+ {[%clk 0:02:28]} 17. Nf3 {[%clk 0:02:42]}  Nf5 {[%clk 0:02:27]} 18. Ra4 {[%clk 0:02:24]}  Rfb8 {[%clk 0:02:22]} 19. Bc1 {[%clk 0:02:15]}  a5 {[%clk 0:02:15]} 20. Qd3 {[%clk 0:02:14]}  Rb3 {[%clk 0:02:11]} 21. Qc2 {[%clk 0:02:07]}  Nxd4 {[%clk 0:01:49]} 22. Rxd4 {[%clk 0:02:05]}  Bxd4 {[%clk 0:01:47]} 23. Rd1 {[%clk 0:02:05]}  Rxf3 {[%clk 0:01:29]} 24. exf3 {[%clk 0:02:02]}  Qc5 {[%clk 0:01:28]} 25. Qe4 {[%clk 0:01:54]}  Rd8 {[%clk 0:00:41]} 26. Be3 {[%clk 0:01:53]}  f5 {[%clk 0:00:42]} 27. Qe6+ {[%clk 0:01:38]}  Kg7 {[%clk 0:00:40]} 28. Bg5 {[%clk 0:01:12]}  Rd5 {[%clk 0:00:30]} 29. Bf6+ {[%clk 0:01:03]}  Kh6 {[%clk 0:00:25]} 30. Bxd4 {[%clk 0:01:03]}  Rxd4 {[%clk 0:00:17]} 31. Qe3+ {[%clk 0:01:03]} 1-0


[Site "https://www.chess.com"]

[Event "Titled Tuesday Blitz May 16 Early 2023"]
[White "Altman, Joshua"]
[Black "Melikhov, Evgeny V."]
[WhiteFideId "426210"]
[BlackFideId "4122046"]
[WhiteElo "2028"]
[BlackElo "2158"]
[Result "1-0"]
[Round "05"]
[TimeControl "180+2"]
[Date "2023.05.16"]
[WhiteClock "0:00:37"]
[BlackClock "0:00:15"]

1. d4 {[%clk 0:03:00]}  Nf6 {[%clk 0:02:59]} 2. c4 {[%clk 0:03:00]}  e6 {[%clk 0:02:59]} 3. Nf3 {[%clk 0:03:00]}  d5 {[%clk 0:02:59]} 4. Nc3 {[%clk 0:03:00]}  Bb4 {[%clk 0:02:59]} 5. cxd5 {[%clk 0:03:00]}  exd5 {[%clk 0:02:59]} 6. Bg5 {[%clk 0:03:00]}  h6 {[%clk 0:02:59]} 7. Bh4 {[%clk 0:02:56]}  c5 {[%clk 0:02:58]} 8. e3 {[%clk 0:02:49]}  g5 {[%clk 0:02:54]} 9. Bg3 {[%clk 0:02:49]}  Qa5 {[%clk 0:02:54]} 10. Nd2 {[%clk 0:02:23]}  c4 {[%clk 0:02:39]} 11. Qc2 {[%clk 0:02:12]}  Nc6 {[%clk 0:02:30]} 12. Be2 {[%clk 0:02:10]}  h5 {[%clk 0:02:19]} 13. h4 {[%clk 0:02:07]}  g4 {[%clk 0:02:15]} 14. O-O {[%clk 0:02:04]}  Qd8 {[%clk 0:02:09]} 15. a3 {[%clk 0:02:01]}  Bd6 {[%clk 0:02:08]} 16. Bxd6 {[%clk 0:01:55]}  Qxd6 {[%clk 0:02:08]} 17. g3 {[%clk 0:01:47]}  O-O {[%clk 0:01:55]} 18. b3 {[%clk 0:01:40]}  cxb3 {[%clk 0:01:45]} 19. Nxb3 {[%clk 0:01:40]}  Re8 {[%clk 0:01:41]} 20. Rac1 {[%clk 0:01:38]}  Ne4 {[%clk 0:01:37]} 21. Nxe4 {[%clk 0:01:35]}  dxe4 {[%clk 0:01:15]} 22. Qc5 {[%clk 0:01:28]}  Qg6 {[%clk 0:01:07]} 23. Bb5 {[%clk 0:01:24]}  Bd7 {[%clk 0:01:05]} 24. Qg5 {[%clk 0:01:13]}  Qxg5 {[%clk 0:01:03]} 25. hxg5 {[%clk 0:01:13]}  Rad8 {[%clk 0:00:59]} 26. Nc5 {[%clk 0:01:12]}  Bc8 {[%clk 0:00:59]} 27. Nxb7 {[%clk 0:01:02]}  Bxb7 {[%clk 0:00:59]} 28. Bxc6 {[%clk 0:01:02]}  Bxc6 {[%clk 0:00:59]} 29. Rxc6 {[%clk 0:01:02]}  Rd5 {[%clk 0:00:59]} 30. Rc7 {[%clk 0:00:55]}  Rxg5 {[%clk 0:00:57]} 31. Rxa7 {[%clk 0:00:55]}  h4 {[%clk 0:00:53]} 32. gxh4 {[%clk 0:00:53]}  Rh5 {[%clk 0:00:53]} 33. Kg2 {[%clk 0:00:51]}  Rxh4 {[%clk 0:00:53]} 34. Rh1 {[%clk 0:00:51]}  Rxh1 {[%clk 0:00:50]} 35. Kxh1 {[%clk 0:00:52]}  g3 {[%clk 0:00:42]} 36. fxg3 {[%clk 0:00:51]}  Rb8 {[%clk 0:00:42]} 37. Re7 {[%clk 0:00:44]}  Rb2 {[%clk 0:00:36]} 38. Rxe4 {[%clk 0:00:43]}  Kg7 {[%clk 0:00:36]} 39. d5 {[%clk 0:00:43]}  Kf6 {[%clk 0:00:29]} 40. d6 {[%clk 0:00:37]}  Rb8 {[%clk 0:00:19]} 41. d7 {[%clk 0:00:37]}  Rd8 {[%clk 0:00:15]} 42. Rd4 {[%clk 0:00:37]} 1-0


[Site "https://www.chess.com"]